Cogmind - Beta 12 @@@ ROGUE MODE // 2023.03.31 @ 20:41:08 Player: Mr Goldstein Result: Destroyed by Y-45 Defender with Beam Rifle Performance ------------- Evolutions (0) 0 Regions Visited (2) 400 Robots Destroyed (20) 100 Value Destroyed (414) 414 Prototype IDs (0) 0 Alien Tech Used (0) 0 Bonus (0) 0 TOTAL SCORE: 914 Bonus ------- None Cogmind --------- Core Integrity 0/250 Matter 297/300 Energy 100/100 System Corruption 4% Temperature Hot (220) Movement Rolling (105) Ox1 Location -10/Mines Parts ------- > --- POWER (1) -------- (None) > --- PROPULSION (2) --- Armored Wheel (fused) > --- UTILITY (2) ------ Large Storage Unit Targeting Computer > --- WEAPON (2) ------- Small Laser Light Assault Rifle > --- INVENTORY (15) --- Ion Engine Wheel Wheel Wheel Wheel Compact Wheel Improved Heat Sink Utility Shielding Light Armor Plating Particle Gun Grenade Launcher Grenade Launcher Rocket Launcher Peak State ------------ > --- POWER ------------ Ion Engine > --- PROPULSION ------- Armored Wheel Armored Wheel > --- UTILITY ---------- Large Storage Unit Targeting Computer > --- WEAPON ----------- Light Assault Rifle Light Assault Rifle > --- INVENTORY -------- Ion Engine Wheel Wheel Wheel Wheel Compact Wheel Armored Wheel Improved Heat Sink Utility Shielding Light Armor Plating Small Laser Particle Gun Grenade Launcher Grenade Launcher Rocket Launcher [Rating: 11] Favorites ----------- Power Ion Engine Engine Ion Engine Propulsion Armored Wheel Wheel Armored Wheel Utility Large Storage Unit Device Sensor Array Storage Large Storage Unit Processor Targeting Computer Weapon Assault Rifle Energy Gun Small Laser Ballistic Gun Assault Rifle Launcher Grenade Launcher Build | -11 -10 -10 ------- Run | Jun Mat Min Slots Evolved . | . . . Power . | . . . Propulsion . | . . . Utility . | . . . Weapon . | . . . Parts Attached 19 | 6 6 7 Power 2 | 1 1 . Engine 2 | 1 1 . Core . | . . . Reactor . | . . . Propulsion 6 | 2 2 2 Treads . | . . . Leg . | . . . Wheel 6 | 2 2 2 Hover . | . . . Flight . | . . . Utility 4 | 1 3 . Device 1 | . 1 . Storage 2 | 1 1 . Processor 1 | . 1 . Hackware . | . . . Protection . | . . . Artifact . | . . . Weapon 7 | 2 . 5 Energy Gun 1 | . . 1 Energy Cannon . | . . . Ballistic Gun 5 | 2 . 3 Ballistic Cannon . | . . . Launcher 1 | . . 1 Special Weapon . | . . . Impact Weapon . | . . . Slashing Weapon . | . . . Piercing Weapon . | . . . Special Melee Weapon . | . . . Unidentified Prototypes . | . . . Parts Lost 7 | . . 7 Power 1 | . . 1 Propulsion 3 | . . 3 Utility . | . . . Weapon 3 | . . 3 Highest Loss Streak 4 | . . 4 To Critical Strikes . | . . . Average Slot Usage (%) 99 | . 99 99 Engine 13 | . 14 13 Wheel 27 | . 28 27 Device 5 | . 10 . Storage 14 | . 14 14 Processor 8 | . 3 14 Ballistic Gun 25 | . 28 23 Launcher 2 | . . 4 Naked Turns . | . . . Heaviest Build 30 | 14 30 30 Greatest Support 24 | 20 24 24 Greatest Overweight (x) 2 | . 1 2 Average Overweight (x) . | . . 1 Largest Inventory Capacity 15 | 8 15 15 Average Capacity 13 | 7 13 15 Most Carried 15 | 6 15 15 Average Carried 10 | 3 9 12 Final Capacity 15 | 8 15 15 Final Carried 13 | 5 13 13 Class Distribution -------------------- 100% | Mutant Dominant Class ---------------- Mutant | -10/Materials Mutant | -10/Mines Resources | -11 -10 -10 ----------- Run | Jun Mat Min Matter Collected 698 | 274 168 256 Remotely . | . . . Salvage Created 503 | 77 190 236 Parts 31 | 6 11 14 Haulers Intercepted . | . . . Recyclers Shooed 2 | . 2 . Parts Field Recycled . | . . . Retrieved Matter . | . . . Parts Self-Destructed . | . . . Prevented . | . . . Kills | -11 -10 -10 ------- Run | Jun Mat Min Combat Hostiles Destroyed 16 | . 7 9 Guns 11 | . 7 4 AOE 5 | . . 5 Classes Destroyed 6 | 2 4 . Builder 1 | . 1 . Tunneler 1 | 1 . . Recycler 1 | 1 . . Watcher 1 | . 1 . Swarmer 9 | . 6 3 Grunt 7 | . 1 6 Best Kill Streak 4 | 2 4 3 Combat Bots Only 4 | . 4 3 Max Kills in Single Turn 3 | 1 2 3 Gunslinging . | . . . Exploded 3 | . . 3 Melee . | . . . Uniques/NPCs Destroyed . | . . . Combat | -11 -10 -10 -------- Run | Jun Mat Min Damage Taken 1236 | . 515 721 Core 260 | . 88 172 Absorbed by Shields . | . . . Core Remaining (%) 100 | 100 . . Volleys Fired 63 | 4 26 33 Largest 2 | 2 2 2 Hottest 60 | 40 40 60 Shots Fired 113 | 8 51 54 Gun 106 | 8 51 47 Cannon . | . . . Launcher 7 | . . 7 Special . | . . . Kinetic 104 | 8 51 45 Thermal 2 | . . 2 Explosive 7 | . . 7 Electromagnetic . | . . . Robot Hit Streak 8 | 2 6 8 Robot Miss Streak 3 | 2 3 2 Penetration Max . | . . . Secondary Targets 1 | . . 1 Max Gunslinging Chain 1 | . . 1 Shots Hit Robots 69 | 4 26 39 Core Hits 38 | 2 15 21 Critical Kills . | . . . Critical Parts Destroyed 1 | . . 1 Critical Strikes 1 | . . 1 Destroy 1 | . . 1 Melee Attacks . | . . . Impact . | . . . Slashing . | . . . Piercing . | . . . Sneak Attacks . | . . . Combat Hostiles . | . . . Follow-up Attacks . | . . . Damage Inflicted 1116 | 66 395 655 Guns 748 | 66 395 287 Cannons . | . . . Explosions 368 | . . 368 Melee . | . . . Ramming . | . . . Kinetic 725 | 66 395 264 Thermal 23 | . . 23 Explosive 368 | . . 368 Electromagnetic . | . . . Impact . | . . . Slashing . | . . . Piercing . | . . . Highest Corruption 4 | . 4 4 Average Corruption 3 | . 3 4 Corruption Purged . | . . . Corruption Blocked . | . . . Effects 22 | . 8 14 Message Errors 10 | . 3 7 Matter Fused 6 | . 4 2 Heat Flow Errors 3 | . . 3 Parts Fused 1 | . . 1 Data Loss (major) 1 | . . 1 Weapon Failures 1 | . 1 . Overload Shots . | . . . Overflow Damage . | . . . Projectiles . | . . . Explosions . | . . . Melee . | . . . Knockbacks . | . . . Impact . | . . . Kinetic . | . . . Secondary . | . . . Self-Inflicted Damage 14 | . . 14 Shots 1 | . . 1 Rammed . | . . . Targets Rammed . | . . . Kicked . | . . . Crushed . | . . . Highest Temperature 294 | . 10 294 Average Temperature 95 | . 4 119 Received Heat Transfer 582 | . 183 399 Effects 3 | . . 3 Interference 3 | . . 3 Siege Activations . | . . . Robots Corrupted . | . . . Combat Hostiles . | . . . Parts Fried . | . . . Impact Corruptions . | . . . Robots Melted . | . . . Combat Hostiles . | . . . Parts Melted . | . . . Heat Transferred 50 | . . 50 Parts Sabotaged . | . . . Parts Stolen . | . . . Parts Stripped . | . . . Power Chain Reactions . | . . . Missiles Intercepted . | . . . Alert | -11 -10 -10 ------- Run | Jun Mat Min Peak Influence 203 | 10 203 183 Initial 6 | . 6 6 Average 82 | 3 48 125 Maximum Alert Level 1 | . 1 . Low Security (%) 94 | 100 87 100 Level 1 5 | . 12 . Level 2 . | . . . Level 3 . | . . . Level 4 . | . . . Level 5 . | . . . High Security . | . . . Max Security . | . . . Squads Dispatched . | . . . Investigation . | . . . Extermination . | . . . Reinforcement . | . . . Assault . | . . . Garrison . | . . . Intercept . | . . . Searches Triggered . | . . . Construction Impeded . | . . . Haulers Reinforced . | . . . Active Scanning Responses . | . . . Cargo Convoy Interrupts . | . . . Stealth | -11 -10 -10 --------- Run | Jun Mat Min Distress Signals 1 | . 1 . Communications Jammed . | . . . Distress Signals . | . . . Times Spotted 23 | . 13 10 Peak Tracking Total 5 | . 5 3 Tactical Retreats . | . . . Traps | -11 -10 -10 ------- Run | Jun Mat Min Traps Triggered 2 | . 2 . Indirectly . | . . . Trap Hack Attempts . | . . . Triggered . | . . . Disarmed . | . . . Reprogrammed . | . . . Reused . | . . . Traps Extracted . | . . . Installed . | . . . Triggered . | . . . Machines | -11 -10 -10 ---------- Run | Jun Mat Min Machines Disabled . | . . . Max in Single Turn . | . . . Machines Repaired . | . . . Machines Sabotaged . | . . . Overloaded Fab Kills . | . . . Hacking | -11 -10 -10 --------- Run | Jun Mat Min Machines Accessed 3 | . 3 . Terminals 3 | . 3 . Fabricators . | . . . Repair Stations . | . . . Recycling Units . | . . . Scanalyzers . | . . . Garrison Access . | . . . Total Hacks 6 | . 6 . Successful 2 | . 2 . Failed 4 | . 4 . Catastrophic . | . . . Database Lockouts . | . . . Manual . | . . . Terminals 6 | . 6 . Fabricators . | . . . Repair Stations . | . . . Recycling Units . | . . . Scanalyzers . | . . . Garrison Access . | . . . Terminal Hacks 2 | . 2 . Locate Traps 1 | . 1 . Hauler Manifests 1 | . 1 . Fabricator Hacks . | . . . Repair Station Hacks . | . . . Recycling Unit Hacks . | . . . Scanalyzer . | . . . Garrison Access Hacks . | . . . Unauthorized Hacks . | . . . Terminals . | . . . Fabricators . | . . . Repair Stations . | . . . Recycling Units . | . . . Scanalyzers . | . . . Garrison Access . | . . . Data Cores Recovered . | . . . Used . | . . . Hacking Detections 2 | . 2 . Full Trace Events 1 | . 1 . Feedback Events . | . . . Feedback Blocked . | . . . Robot Schematics Acquired . | . . . Robots Built . | . . . Authchips . | . . . Time . | . . . Total Robot Build Rating . | . . . Part Schematics Acquired . | . . . Parts Built . | . . . Authchips . | . . . Time . | . . . Total Part Build Rating . | . . . Parts Repaired . | . . . Time . | . . . Parts Recycled . | . . . Recycled Matter . | . . . Retrieved Matter . | . . . Retrieved Components . | . . . Parts Scanalyzed . | . . . Part Schematics Acquired . | . . . Parts Damaged . | . . . Bothacking | -11 -10 -10 ------------ Run | Jun Mat Min Used RIF Installer . | . . . Robots Hacked . | . . . Non-combat . | . . . Combat . | . . . Robot Hacks Applied . | . . . Relay Couplers Released . | . . . Fabnet Peak Effective % . | . . . Robots Rewired . | . . . Allies Hacked . | . . . Hacks Repelled . | . . . Allies | -11 -10 -10 -------- Run | Jun Mat Min Total Allies . | . . . Largest Group . | . . . Highest-Rated Group . | . . . Highest-Rated Ally . | . . . Total Orders . | . . . Ally Attacks . | . . . Total Damage . | . . . Kills . | . . . Allies Corrupted . | . . . Allies Melted . | . . . Intel | -11 -10 -10 ------- Run | Jun Mat Min Robot Analysis Total . | . . . Derelict Logs Recovered 2 | . . 2 Drone Launches . | . . . Drone Recoveries . | . . . Exploration | -11 -10 -10 ------------- Run | Jun Mat Min Turns Passed 1159 | 75 532 552 Spaces Moved 828 | 52 384 392 Core 14 | 14 . . Treads . | . . . Legs . | . . . Wheels 814 | 38 384 392 Hover . | . . . Flight . | . . . Fastest Speed 50 | 50 80 105 Average Speed 98 | 71 96 105 Slowest Speed 120 | 80 105 120 Overloaded Moves . | . . . Propulsion Burnouts . | . . . Robots Hopped . | . . . Cave-ins Triggered . | . . . Exploration Rate (%) 45 | 5 69 62 Regions Visited 2 Branch Regions 1 Pre-discovered Areas . | . . . Known Exits Taken . | . . . Unknown Exits Taken 2 | 1 1 . Scrap Searched 2 | . . 2 Spaces Dug . | . . . Terrain Destroyed 50 | . . 50 Melee . | . . . Projectile . | . . . AOE 50 | . . 50 Terrain Rammed . | . . . Walls Destroyed . | . . . Machines Disabled . | . . . Actions | -11 -10 -10 --------- Run | Jun Mat Min Total 1058 | 80 493 485 Wait 118 | 9 61 48 Move 826 | 51 383 392 Hop . | . . . Pick Up 28 | 10 13 5 Fast Attach 1 | 1 . . Attach 11 | 5 1 5 Detach . | . . . Swap 7 | . 5 2 Drop 4 | . 4 . Fire 63 | 4 26 33 Melee . | . . . Ram . | . . . Kick . | . . . Crush . | . . . Escape Stasis . | . . . Rewire . | . . . Trap . | . . . Miscellaneous . | . . . Route ------- -11/Junkyard -10/Materials (discovered 2 exits: *Mat / [*Min]) -10/Mines (discovered 2 exits: *Mat x2) History --------- Turn | Location | Event 7 | -11/Junkyard | Discovered new exit (range 16) 76 | -11/Junkyard | Entered Materials 302 | -10/Materials | Build established: Mutant 306 | -10/Materials | Discovered new exit (range 13) 498 | -10/Materials | Discovered new exit (range 15) 608 | -10/Materials | Entered Mines 812 | -10/Mines | Identified exit to Materials 823 | -10/Mines | Learned 2 Materials zone layouts 831 | -10/Mines | Discovered exit to Materials (range 10) 1046 | -10/Mines | Core integrity fell below 50% 1092 | -10/Mines | Received a Rocket Launcher from a helpful Derelict 1125 | -10/Mines | Core integrity fell below 20% 1160 | -10/Mines | Destroyed by Y-45 Defender with Beam Rifle Last Messages --------------- 01088_ 8X-50V(g): "They are crazy." 01089_ 8X-50V(g): "Everyone knows a good old rocket launcher goes a long way." 01090_ 8X-50V(g): "Need to get rid of a swarm? Done. Need a big hole in the wall? Done." 01091_ 8X-50V(g): "Need a small hole in the wall? Leave that to the mining laser wimps, I say!" 01092_ 8X-50V(g): "Would you like a rocket launcher? I know I would if I were you, so I'm going to lend you mine." 01092_ 8X-50V(g) slips back into the shadows. 01093_ Acquired Rocket Launcher. 01099_ LD#0ETTO5H>EP0RDZGA0UT#R52KHAYT:1|6GO 01117_ System corrupted: Matter fused (-7). 01124_ Arm. Wheel destroyed. 01130_ Acquired 11 matter. 01141_ System corrupted: Arm. Wheel fused. 01151_ Critical hit (Burn: +37). 01151_ Lgt. Assault Rifle destroyed. 01157_ System corrupted: Heat flow error (+197). 01157_ Ion Engine destroyed. 01157_ Arm. Wheel destroyed. Map ----- +----------------------------------------------------+ | #?????????????????????????????????????????? | | #######?????????????????????????????????????????? | | #???????????????????????????????????????????????? | | #??????????????????????????????????###??????????? | | #????????????????????????????????## ##?????????? | | #?????###???????????????????????## #?????????? | | #?????# #??????????????????????? ##????????? | | #?????# ##????####????????????? ##???????? | | #????## #???## ##???????????? ##??????? | | #????# #??## ##?????###?### #??????? | | #????# #### ##???##" ## #??????? | | #????## ## ##??#"" # #???????? | | #?????### ####[! + #?????????? | | #???????## ! ##!! + #??????????? | | #????????## ## #""$ # #??????????? | | #???#######! ##### ######" ## #??????????? | | #???# ! [#???## ##????#### ########???? | | #???# #????## #???????# #???? | | #???# #######?????# #??????## ##??? | | ##### # ##???????# #??????# ###### #??? | | ##??????# #??????# ##???## #??? | | ! ! ##?????# #####??# ## #??### #??? | | #### ##????# #??# ## #?## #### | | #??# ##???##### #??# ## ### | | #??# #### #??# #?## ## ## | | #??# ## #??#@### # # ######## | | #### #??# YY ##??????? | | ## ##??##### #???????? | | # ## ## ##???????## ##### #??????? | | # ### ### ##?????????# #???## #??????? | | # ### #### ##??????????# #???## #?????? | | # #### ##?## ##??????????# #???# ???? | | ## ##??## ##?????????## #???# ?? | | [ ##??## ##?????????##++#???## ##? | | ##??# ##?????????? ????# ####?? | | #####??# ######????? #???# ##????? | | ####???## ##???? #???? ?????? | | # # #???????## ##??? #???? ###????? | | # ##????????## #??? #????###??????? | | ######??????????## ## #???####?????????????? | | ?????????????????#######?####????????????????????? | | ?????????????????????????????????????????????????? | | ?????????????????????????????????????????????????? | | ?????????????????????????????????????????????????? | | | | | | | | | | | | | +----------------------------------------------------+ Best States ------------- Heat Dissipation 25 Energy Generation 10 Energy Capacity 250 Matter Stores 300 Matter Capacity 300 Sight Range 16 Robot Scan Range 14 Terrain Scan Density 10 Evasion (%) 50 Targeting Accuracy 5 Item Schematics ----------------- None Robot Schematics ------------------ None Fabricated ------------ Nothing Alien Tech Used ----------------- None Achievements -------------- None Challenges ------------ None Game ------ Seed AutogunAbsorptionFrame Manual? 0 Play Time 00:11:06 Cumulative 54.6 hours Start 2023.03.31 @ 20:26:54 End 2023.03.31 @ 20:41:08 Sessions 1 Manual Loads 0 Difficulty Rogue Special Mode None Game No. 80 Rogue 80 Adventurer 0 Explorer 0 Win Type - Total 0 Types 0/0/0/0/0/0/0/0/0 Lore% 37 Gallery% 38 Achievement% 34 Wizard Run 0 Options --------- ASCII 0 Keyboard 0 Movement Arrows Keybinds 0 Fullscreen 1 Font 12/Smallcaps Map View 83x54 Tactical HUD 1 Map Filters NONE Filters NONE Steam 1 RUN: d7bae759-a225-44b2-8d0e-4e02ec592ed4